bitfinex/quotes_BTCUSD_20250617
["timestamp","ask_amount","ask_price","bid_price","bid_amount"]
[1750151820807,0.3785569,106500.0,106490.0,0.32872341]
[1750151821040,0.63618294,106500.0,106490.0,0.32872341]
[1750151821252,0.82397636,106500.0,106490.0,0.32872341]
[1750151821467,0.63618294,106500.0,106490.0,0.32872341]
[1750151821889,0.60190387,106500.0,106490.0,0.32872341]
[1750151822328,0.61129327,106500.0,106490.0,0.32872341]
[1750151822543,0.62068276,106500.0,106490.0,0.32872341]
[1750151822771,0.36916741,106500.0,106490.0,0.32872341]
[1750151822987,0.60190387,106500.0,106490.0,0.32872341]
[1750151823446,0.341,106500.0,106490.0,0.34492341]
[1750151823661,0.341,106500.0,106490.0,0.57765987]
[1750151823662,0.001,106500.0,106490.0,0.57765987]
[1750151824096,0.001,106500.0,106490.0,0.77765987]
[1750151824796,0.01877431,106520.0,106490.0,0.77765987]
[1750151825015,0.35877431,106520.0,106510.0,0.38134109]
[1750151825229,0.35877431,106520.0,106510.0,0.47758285]
[1750151825230,0.3681616,106520.0,106510.0,0.47758285]
[1750151825449,0.37754906,106520.0,106510.0,0.47758285]
[1750151825659,0.35877431,106520.0,106510.0,0.47758285]
[1750151825868,0.36816168,106520.0,106510.0,0.47758285]
[1750151826319,0.35977431,106520.0,106510.0,0.49376265]
[1750151826538,0.35038711,106520.0,106510.0,0.47758285]
[1750151826965,0.341,106520.0,106510.0,0.47758285]
[1750151827200,0.341,106520.0,106510.0,0.49278285]
[1750151827443,0.3503872,106520.0,106510.0,0.49278285]
[1750151827649,0.341,106520.0,106510.0,0.49278285]
[1750151828078,0.34,106520.0,106510.0,0.49278285]
[1750151828805,0.34,106520.0,106510.0,0.49478285]
[1750151829020,0.35877457,106520.0,106510.0,0.47958285]
[1750151829231,0.35877457,106520.0,106510.0,0.63538285]
[1750151829650,0.35877449,106520.0,106510.0,0.63538285]
[1750151829867,0.36816204,106520.0,106510.0,0.47958285]
[1750151830082,0.36816204,106520.0,106510.0,0.63534285]
[1750151830304,0.35877449,106520.0,106510.0,0.63534285]
[1750151830520,0.36816195,106520.0,106510.0,0.63534285]
[1750151831372,0.35877449,106520.0,106510.0,0.63534285]
[1750151832031,0.77926911,106520.0,106510.0,0.47019468]
[1750151832243,0.82145753,106520.0,106510.0,0.44540633]
[1750151832448,0.81207016,106520.0,106510.0,0.25400176]
[1750151832694,0.81207016,106520.0,106510.0,0.24824176]
[1750151832903,0.81207016,106520.0,106510.0,0.59177755]
[1750151833121,0.81207016,106520.0,106510.0,0.60116616]
[1750151833519,0.80268252,106520.0,106510.0,0.60116616]
[1750151833959,0.80268252,106520.0,106510.0,0.61055459]
[1750151834175,0.81207016,106520.0,106510.0,0.6293311]
[1750151834604,0.81207016,106520.0,106510.0,0.61994293]
[1750151835240,0.81207016,106520.0,106510.0,0.62933119]
[1750151835898,0.81207016,106520.0,106510.0,0.46418293]
[1750151836125,0.81207016,106520.0,106510.0,0.61990293]
[1750151836829,0.81207016,106520.0,106510.0,0.62929119]
[1750151837249,0.81207016,106520.0,106510.0,0.61990293]
[1750151838283,0.81207016,106520.0,106510.0,0.46418293]
[1750151838494,0.81207016,106520.0,106510.0,0.61990293]
[1750151838732,0.81207016,106520.0,106510.0,0.60112616]
[1750151838940,0.80268252,106520.0,106510.0,0.152]
[1750151839146,0.80268252,106520.0,106510.0,0.30772]
[1750151840237,0.80268252,106520.0,106510.0,0.152]
[1750151841572,0.56994606,106520.0,106510.0,0.152]
[1750151841819,0.80268252,106520.0,106510.0,0.152]
[1750151845330,0.83087752,106520.0,106510.0,0.152]
[1750151872230,0.81437752,106520.0,106510.0,0.152]
[1750151876980,1.04729572,106520.0,106510.0,0.152]
[1750151880543,0.57225316,106520.0,106510.0,0.34716449]
[1750151880765,0.37758273,106520.0,106510.0,0.49308303]
[1750151880980,0.34,106520.0,106510.0,0.6579912]
[1750151882307,0.27979205,106530.0,106520.0,0.24682082]
[1750151882545,0.27979205,106530.0,106520.0,0.34306258]
[1750151882772,0.61979205,106530.0,106520.0,0.34306258]
[1750151882994,0.52145728,106540.0,106530.0,0.39680055]
[1750151883216,0.54022824,106540.0,106530.0,0.55232055]
[1750151883425,0.7729045,106540.0,106530.0,0.55232055]
[1750151883635,1.10356577,106540.0,106530.0,0.55232055]
[1750151884263,1.09417981,106540.0,106530.0,0.55232055]
[1750151884490,1.07540832,106540.0,106530.0,0.64856231]
[1750151884676,1.09417963,106540.0,106530.0,0.64856231]
[1750151885101,1.0784084,106540.0,106530.0,0.64856231]
[1750151885739,0.84573284,106540.0,106530.0,0.64856231]
[1750151885949,0.36181854,106540.0,106530.0,0.64856231]
[1750151886381,0.36181846,106540.0,106530.0,0.64856231]
[1750151886589,0.36181837,106540.0,106530.0,0.64856231]
[1750151887014,0.37120416,106540.0,106530.0,0.64856231]
[1750151887226,0.36181837,106540.0,106530.0,0.64856231]
[1750151887441,0.35243276,106540.0,106530.0,0.64856231]
[1750151887871,0.36181837,106540.0,106530.0,0.64856231]
[1750151888082,0.35243276,106540.0,106530.0,0.64856231]
[1750151888727,0.34304732,106540.0,106530.0,0.64856231]
[1750151889190,0.35243284,106540.0,106530.0,0.64856231]
[1750151889399,0.36181854,106540.0,106530.0,0.64856231]
[1750151889617,0.35243276,106540.0,106530.0,0.64836231]
[1750151889829,0.34304732,106540.0,106530.0,0.64836231]
[1750151890261,0.35243267,106540.0,106530.0,0.64836231]
[1750151890490,0.34304732,106540.0,106530.0,0.64836231]
[1750151892012,0.34304732,106540.0,106530.0,0.88103787]
[1750151892277,0.34304732,106540.0,106530.0,0.64836231]
[1750151892525,0.34304732,106540.0,106530.0,0.49284231]
[1750151892770,0.34304732,106540.0,106530.0,0.68928231]
[1750151893009,0.35243267,106540.0,106530.0,0.68928231]
[1750151893248,0.34204732,106540.0,106530.0,0.68928231]
[1750151893461,0.34004732,106540.0,106530.0,0.68928231]
[1750151897414,0.34943267,106540.0,106530.0,0.68928231]
[1750151897823,0.34004732,106540.0,106530.0,0.68928231]
[1750151899812,0.34004732,106540.0,106530.0,0.67388231]
[1750151899813,0.34943276,106540.0,106530.0,0.67388231]
[1750151900783,0.34004732,106540.0,106530.0,0.67388231]
[1750151901001,0.34004732,106540.0,106530.0,0.68988231]
[1750151901433,0.34943284,106540.0,106530.0,0.67388231]
[1750151901651,0.34943276,106540.0,106530.0,0.67388231]
[1750151901868,0.34004732,106540.0,106530.0,0.67388231]
[1750151902258,0.34943267,106540.0,106530.0,0.67388231]
[1750151902494,0.35881811,106540.0,106530.0,0.67388231]
[1750151903540,0.35881811,106540.0,106530.0,0.88388231]
[1750151903763,0.34943267,106540.0,106530.0,0.68744231]
[1750151903962,0.36820381,106540.0,106530.0,0.70314231]
[1750151904167,0.36820381,106540.0,106530.0,0.85850231]
[1750151904438,0.36820372,106540.0,106530.0,0.85850231]
[1750151904649,0.36820363,106540.0,106530.0,0.85850231]
[1750151905077,0.36820363,106540.0,106530.0,0.84280231]
[1750151906363,0.37758933,106540.0,106530.0,0.84280231]
[1750151906579,0.36820363,106540.0,106530.0,0.84280231]
[1750151907001,0.61025318,106540.0,106530.0,0.84280231]
[1750151907212,0.61025318,106540.0,106530.0,0.88380231]
[1750151907650,0.60086748,106540.0,106530.0,0.88380231]
[1750151908289,0.34004732,106540.0,106530.0,0.88380231]
[1750151908501,0.34943276,106540.0,106530.0,0.88380231]
[1750151908718,0.34004732,106540.0,106530.0,1.13264596]
[1750151908930,0.34004732,106540.0,106530.0,1.11646616]
[1750151909156,0.34943267,106540.0,106530.0,1.11642616]
[1750151909365,0.59148196,106540.0,106530.0,0.88376231]
[1750151909586,0.35881811,106540.0,106530.0,0.88376231]
[1750151910212,0.35881811,106540.0,106530.0,0.68744231]
[1750151910418,0.35881811,106540.0,106530.0,0.88376231]
[1750151910863,0.34943267,106540.0,106530.0,0.88376231]
[1750151911075,0.34004732,106540.0,106530.0,0.88376231]
[1750151911280,0.34943267,106540.0,106530.0,0.88376231]
[1750151911729,0.35881819,106540.0,106530.0,0.88376231]
[1750151911876,0.34943267,106540.0,106530.0,0.88376231]
[1750151912302,0.58209652,106540.0,106530.0,0.88376231]
[1750151912703,0.59148204,106540.0,106530.0,0.88376231]
[1750151913838,0.59148196,106540.0,106530.0,0.88376231]
[1750151914072,0.59148196,106540.0,106530.0,0.89994211]
[1750151914275,0.60086757,106540.0,106530.0,0.88376231]
[1750151914494,0.60086757,106540.0,106530.0,0.45624176]
[1750151914495,1.040026,106540.0,106530.0,0.45624176]
[1750151914718,1.0429696,106540.0,106530.0,0.45624176]
[1750151915156,1.0429696,106540.0,106530.0,0.61152176]
[1750151915393,1.0429696,106540.0,106530.0,0.7992623]
[1750151915579,1.0335839,106540.0,106530.0,0.61152176]
[1750151916767,1.0335839,106540.0,106530.0,0.7992623]
[1750151916974,0.80099089,106540.0,106530.0,0.81803617]
[1750151917176,0.80099089,106540.0,106530.0,0.80864932]
[1750151918829,0.80099089,106540.0,106530.0,0.81803625]
[1750151919047,0.80099089,106540.0,106530.0,0.8274231]
[1750151919258,0.80099089,106540.0,106530.0,0.84619653]
[1750151920304,0.39930503,106540.0,106530.0,0.846196]
[1750151920505,0.63203972,106540.0,106530.0,0.84619548]
[1750151921737,0.62265367,106540.0,106530.0,0.84619548]
[1750151922326,0.81976264,106540.0,106530.0,0.84619548]
[1750151922746,0.63203972,106540.0,106530.0,0.84619548]
[1750151923433,0.62265367,106540.0,106530.0,0.84619548]
[1750151924477,0.61603911,106540.0,106530.0,0.84619548]
[1750151924714,0.35514732,106540.0,106530.0,0.84619548]
[1750151924923,0.34943284,106540.0,106530.0,0.86249548]
[1750151925343,0.34004732,106540.0,106530.0,0.86249548]
[1750151925570,0.34943276,106540.0,106530.0,0.86249548]
[1750151925791,0.35881828,106540.0,106530.0,0.86249548]
[1750151926217,0.34943276,106540.0,106530.0,0.86249548]
[1750151926429,0.34004732,106540.0,106530.0,0.86249548]
[1750151926637,0.34943267,106540.0,106530.0,0.86249548]
[1750151926868,0.34943276,106540.0,106530.0,0.86249548]
[1750151927084,0.34943267,106540.0,106530.0,0.86249548]
[1750151927337,0.35881819,106540.0,106530.0,0.86249548]
[1750151927543,0.35881811,106540.0,106530.0,0.86249548]
[1750151928648,0.36820372,106540.0,106530.0,0.86249548]
[1750151928851,0.37758942,106540.0,106530.0,0.86249548]
[1750151929507,0.36820372,106540.0,106530.0,0.86249548]
[1750151929719,0.36820372,106540.0,106530.0,0.87867528]
[1750151929949,0.36820372,106540.0,106530.0,0.86249548]
[1750151931443,0.37758951,106540.0,106530.0,0.86249548]
[1750151931861,0.36820372,106540.0,106530.0,0.86249548]
[1750151932519,0.36820363,106540.0,106530.0,0.86249548]
[1750151932726,0.35881811,106540.0,106530.0,0.86249548]
[1750151933165,0.36820372,106540.0,106530.0,0.86249548]
[1750151933374,0.37758942,106540.0,106530.0,0.86249548]
[1750151934472,0.36820372,106540.0,106530.0,0.86249548]
[1750151935586,0.35881811,106540.0,106530.0,0.86249548]
[1750151936240,0.37758977,106540.0,106530.0,0.86249548]
[1750151936503,0.37758969,106540.0,106530.0,0.86249548]
[1750151936931,0.38697565,106540.0,106530.0,0.86249548]
[1750151937143,0.39338969,106540.0,106530.0,0.86249548]
[1750151937978,0.39338969,106540.0,106530.0,0.65336923]
[1750151937979,0.80446247,106540.0,106530.0,0.65336923]
[1750151938199,0.81097677,106540.0,106530.0,0.45624176]
[1750151938416,0.81097677,106540.0,106530.0,0.61140176]
[1750151943066,0.81097677,106540.0,106530.0,0.7991423]
[1750151943285,0.81097677,106540.0,106530.0,0.80852932]
[1750151943530,0.81097677,106540.0,106530.0,0.81791625]
[1750151943777,0.80159089,106540.0,106530.0,0.61140176]
[1750151944257,0.80159089,106540.0,106530.0,0.7991423]
[1750151944485,0.80159089,106540.0,106530.0,0.81791599]
[1750151945175,0.80159089,106540.0,106530.0,0.82470903]
[1750151945412,0.80159089,106540.0,106530.0,0.80852923]
[1750151945643,0.79220493,106540.0,106530.0,0.61140176]
[1750151946109,0.79220493,106540.0,106530.0,0.7991423]
[1750151946346,0.79220493,106540.0,106530.0,0.80852932]
[1750151947060,0.79220493,106540.0,106530.0,0.81791625]
[1750151947303,0.79220493,106540.0,106530.0,0.80852932]
[1750151948672,0.55947024,106540.0,106530.0,0.66275625]
[1750151948904,1.02491226,106540.0,106530.0,0.81787625]
[1750151949846,1.02491226,106540.0,106530.0,0.80848932]
[1750151950078,1.02491226,106540.0,106530.0,0.81787625]
[1750151950558,1.02491226,106540.0,106530.0,0.51512]
[1750151951018,0.55947024,106540.0,106530.0,0.51512]
[1750151951259,1.02491226,106540.0,106530.0,0.51512]
[1750151952165,1.02491226,106540.0,106530.0,0.71224756]
[1750151953321,1.02491226,106540.0,106530.0,0.52450702]
[1750151953559,1.02491226,106540.0,106530.0,0.51512]
[1750151954725,1.02491226,106540.0,106530.0,0.36]
[1750151954964,1.02491226,106540.0,106530.0,0.51508]
[1750151955197,1.02491226,106540.0,106530.0,0.70282054]
[1750151956300,1.02491226,106540.0,106530.0,0.51508]
[1750151956510,1.02491226,106540.0,106530.0,0.36]
[1750151956715,1.02491226,106540.0,106530.0,0.70282054]
[1750151957136,1.02491226,106540.0,106530.0,0.51508]
[1750151957590,1.02491226,106540.0,106530.0,0.70282054]
[1750151958697,1.02491226,106540.0,106530.0,0.72159449]
[1750151959310,1.02491226,106540.0,106530.0,0.71220756]
[1750151959995,1.02491226,106540.0,106530.0,0.55712756]
[1750151960208,1.02491226,106540.0,106530.0,0.51504]
[1750151960413,1.02491226,106540.0,106530.0,0.70278054]
[1750151961042,1.02491226,106540.0,106530.0,0.72155449]
[1750151961253,1.02491226,106540.0,106530.0,0.73094134]
[1750151961485,1.00901226,106540.0,106530.0,0.73094134]
[1750151961703,0.54357024,106540.0,106530.0,0.73094134]
[1750151961930,0.79506327,106540.0,106530.0,0.84595635]
[1750151962179,0.80444897,106540.0,106530.0,0.84595635]
[1750151962602,0.61031149,106540.0,106530.0,0.8617553]
[1750151962805,0.79803441,106540.0,106530.0,0.8617553]
[1750151963015,0.79803441,106540.0,106530.0,0.85236889]
[1750151963231,0.79803441,106540.0,106530.0,0.8429824]
[1750151963465,0.78864897,106540.0,106530.0,0.8429824]
[1750151963886,0.78864897,106540.0,106530.0,0.6329824]
[1750151964300,0.78864897,106540.0,106530.0,0.64236881]
[1750151964301,0.34943276,106540.0,106530.0,0.64236881]
[1750151964512,0.36820407,106540.0,106530.0,0.64236881]
[1750151964768,0.61031104,106540.0,106530.0,0.64236881]
[1750151964978,0.61969709,106540.0,106530.0,0.64236889]
[1750151965415,0.61031104,106540.0,106530.0,0.6517553]
[1750151965850,0.60092508,106540.0,106530.0,0.6517553]
[1750151966715,0.34004732,106540.0,106530.0,0.88447631]
[1750151966931,0.34004732,106540.0,106530.0,0.89977631]
[1750151967378,0.34943267,106540.0,106530.0,0.89977631]
[1750151967587,0.34004732,106540.0,106530.0,0.89977631]
[1750151968007,0.34943267,106540.0,106530.0,0.89977631]
[1750151968213,0.34943267,106540.0,106530.0,0.91595611]
[1750151968214,0.34004732,106540.0,106530.0,0.91595611]
[1750151968424,0.34004732,106540.0,106530.0,0.89977631]
[1750151969316,0.34004732,106540.0,106530.0,1.19977631]
[1750151970855,0.34943276,106540.0,106530.0,0.9670553]
[1750151971086,0.59153947,106540.0,106530.0,0.9517553]
[1750151972818,0.35881846,106540.0,106530.0,0.94236889]
[1750151973033,0.59153947,106540.0,106530.0,0.9517553]
[1750151973684,0.58215377,106540.0,106530.0,0.9517553]
[1750151973896,0.59153929,106540.0,106530.0,0.9517553]
[1750151974106,0.60092499,106540.0,106530.0,0.9517553]
[1750151976030,0.61031087,106540.0,106530.0,0.9517553]
[1750151976241,0.60092499,106540.0,106530.0,0.9517553]
[1750151977091,0.61031087,106540.0,106530.0,0.9517553]
[1750151977300,0.62681078,106540.0,106530.0,0.9517553]
[1750151979440,0.61031078,106540.0,106530.0,0.9517553]
[1750151980134,0.61969674,106540.0,106530.0,0.9517553]
[1750151980585,0.63539674,106540.0,106530.0,0.7809153]
[1750151980796,0.63539674,106540.0,106530.0,0.9518753]
[1750151981471,0.82312036,106540.0,106530.0,0.9686553]
[1750151981686,1.05584137,106540.0,106530.0,1.1048424]
[1750151981944,0.86811845,106540.0,106530.0,1.11422881]
[1750151982190,0.85873231,106540.0,106530.0,1.11422881]
[1750151983398,0.6260113,106540.0,106530.0,1.11422881]
[1750151984977,0.39329029,106540.0,106530.0,1.11422881]
[1750151985231,0.6260113,106540.0,106530.0,1.11422881]
[1750151986192,1.0558419,106540.0,106530.0,1.1048024]
[1750151986430,1.0558419,106540.0,106530.0,1.11418889]
[1750151987370,1.0558419,106540.0,106530.0,1.1235753]
[1750151988378,0.86811898,106540.0,106530.0,1.1235753]
[1750151988818,0.85873284,106540.0,106530.0,1.1235753]
[1750151989942,1.04645576,106540.0,106530.0,1.1235753]
[1750151990139,1.0558419,106540.0,106530.0,1.1235753]
[1750151991303,1.0558419,106540.0,106530.0,0.88886176]
[1750151991304,1.04368445,106540.0,106530.0,0.88886176]
[1750151991782,1.04368445,106540.0,106530.0,0.63774]
[1750151992272,1.04368445,106540.0,106530.0,0.79262]
[1750151992991,1.37255468,106540.0,106530.0,0.63774]
[1750151993243,1.47196546,106540.0,106530.0,0.63774]
[1750151993756,1.47196546,106540.0,106530.0,0.48774]
[1750151993973,1.47196546,106540.0,106530.0,0.63774]
[1750151994440,1.47196546,106540.0,106530.0,0.48774]
[1750151994650,1.47196546,106540.0,106530.0,0.33774]
[1750151994865,1.47196546,106540.0,106530.0,0.18774]
[1750151995085,1.47196546,106540.0,106530.0,0.33774]
[1750151996037,1.47196546,106540.0,106530.0,0.18774]
[1750151996268,1.47196546,106540.0,106530.0,0.33774]
[1750151996269,1.56811468,106540.0,106530.0,0.33774]
[1750151996490,1.68672649,106540.0,106530.0,0.33774]
[1750151997125,1.71492249,106540.0,106530.0,0.33774]
[1750151998000,1.71892249,106540.0,106530.0,0.33774]
[1750151998211,1.72092249,106540.0,106530.0,0.33774]
[1750151998602,1.71892249,106540.0,106530.0,0.33774]
[1750151998906,1.48948452,106540.0,106530.0,0.33774]
[1750152000968,1.53393369,106540.0,106530.0,0.33774]
[1750152001204,0.5723611,106500.0,106490.0,0.07422872]
[1750152001414,0.79583467,106500.0,106490.0,0.22422872]
[1750152001638,1.1996772,106500.0,106490.0,0.22422872]
[1750152001863,1.0447972,106500.0,106490.0,0.22422872]
[1750152002102,1.2403572,106500.0,106490.0,0.22422872]
[1750152002798,1.26871314,106500.0,106490.0,0.22422872]
[1750152003285,1.26871314,106500.0,106490.0,0.15]
[1750152003504,1.25932365,106500.0,106480.0,0.15488]
[1750152003742,0.20661068,106480.0,106470.0,0.4563502]
[1750152003960,0.77008257,106480.0,106470.0,0.66366908]
[1750152004189,0.78638257,106480.0,106470.0,0.68245361]
[1750152004890,0.78638257,106480.0,106470.0,0.24671402]
[1750152005133,0.80238257,106480.0,106470.0,0.15047226]
[1750152005355,0.80238257,106480.0,106470.0,0.30535226]
[1750152005604,0.78638257,106480.0,106470.0,0.30735226]
[1750152005877,0.78638257,106480.0,106470.0,0.50459091]
[1750152006129,0.80198257,106480.0,106470.0,0.30735226]
[1750152006907,0.78638257,106480.0,106470.0,0.30935226]
[1750152007671,0.78638257,106480.0,106470.0,0.4971986]
[1750152008209,0.78638257,106480.0,106470.0,0.15447226]
[1750152008459,0.78638257,106480.0,106470.0,0.30935226]
[1750152010051,0.78638257,106480.0,106470.0,0.50659091]
[1750152010267,0.55352004,106480.0,106470.0,0.50659091]
[1750152010494,0.35878189,106480.0,106470.0,0.64730863]
[1750152010711,0.34,106480.0,106470.0,0.90566285]
[1750152010936,0.34939072,106480.0,106470.0,0.67280032]
[1750152011158,0.3681727,106480.0,106470.0,0.67280032]
[1750152011408,0.36817261,106480.0,106470.0,0.67280032]
[1750152011640,0.34,106480.0,106470.0,0.67280032]
[1750152012344,0.34939072,106480.0,106470.0,0.67280032]
[1750152012825,0.35878171,106480.0,106470.0,0.67280032]
[1750152013063,0.36817288,106480.0,106470.0,0.67280032]
[1750152013546,0.36817288,106480.0,106470.0,0.65670032]
[1750152015064,0.57478417,106480.0,106470.0,0.65666032]
[1750152015311,0.38695547,106480.0,106470.0,0.65666032]
[1750152015527,0.37756413,106480.0,106470.0,0.65666032]
[1750152016261,0.36817288,106480.0,106470.0,0.65666032]
[1750152016489,0.35878171,106480.0,106470.0,0.65666032]
[1750152016694,0.36817279,106480.0,106470.0,0.65666032]
[1750152017420,0.37756404,106480.0,106470.0,0.65666032]
[1750152018356,0.57478479,106480.0,106470.0,0.65666032]
[1750152018625,0.81425633,106480.0,106470.0,0.62157685]
[1750152018847,0.81425633,106480.0,106470.0,0.63096872]
[1750152019368,0.5813938,106480.0,106470.0,0.63096872]
[1750152019580,0.3935651,106480.0,106470.0,0.65656041]
[1750152020241,0.3775651,106480.0,106470.0,0.65656041]
[1750152020450,0.36817367,106480.0,106470.0,0.65656041]
[1750152020664,0.3587818,106480.0,106470.0,0.65656041]
[1750152020874,0.36817297,106480.0,106470.0,0.65656041]
[1750152021109,0.3587818,106480.0,106470.0,0.65656041]
[1750152021316,0.3587818,106480.0,106470.0,0.67196041]
[1750152022037,0.36817305,106480.0,106470.0,0.65656041]
[1750152023393,0.3587818,106480.0,106470.0,0.65656041]
[1750152024444,0.34939081,106480.0,106470.0,0.65656041]
[1750152024652,0.34939072,106480.0,106470.0,0.65656041]
[1750152024880,0.34939072,106480.0,106470.0,0.67296041]
[1750152025715,0.34939064,106480.0,106470.0,0.67296041]
[1750152025933,0.35878145,106480.0,106470.0,0.67296041]
[1750152026202,0.36817244,106480.0,106470.0,0.67296041]
[1750152026417,0.37756361,106480.0,106470.0,0.65656041]
[1750152026619,0.36817244,106480.0,106470.0,0.65656041]
[1750152027593,0.35878145,106480.0,106470.0,0.65656041]
[1750152028229,0.36817235,106480.0,106470.0,0.65656041]
[1750152029260,0.35878145,106480.0,106470.0,0.65656041]
[1750152029490,0.016,106490.0,106480.0,0.21600193]
[1750152029700,0.34938975,106490.0,106480.0,0.57750622]
[1750152029917,0.34938975,106490.0,106480.0,0.34464369]
[1750152030136,0.35877968,106490.0,106480.0,0.34464369]
[1750152030993,0.36816988,106490.0,106480.0,0.32814369]
[1750152031446,0.37756016,106490.0,106480.0,0.32814369]
[1750152032094,0.35877968,106490.0,106480.0,0.32814369]
[1750152032563,0.37755998,106490.0,106480.0,0.32814369]
[1750152033211,0.58197166,106490.0,106480.0,0.30285288]
[1750152033431,0.81483419,106490.0,106480.0,0.45765288]
[1750152033914,0.81483419,106490.0,106480.0,0.46704387]
[1750152034125,0.62702313,106490.0,106480.0,0.47643468]
[1750152034767,0.3941606,106490.0,106480.0,0.47643468]
[1750152036081,0.40355106,106490.0,106480.0,0.47643468]
[1750152036315,0.59136212,106490.0,106480.0,0.47643468]
[1750152036500,0.38477023,106490.0,106480.0,0.47643468]
[1750152036963,0.3941606,106490.0,106480.0,0.47643468]
[1750152037174,0.3941606,106490.0,106480.0,0.49203468]
[1750152037386,0.38477023,106490.0,106480.0,0.49203468]
[1750152037605,0.37537995,106490.0,106480.0,0.49203468]
[1750152037846,0.38477006,106490.0,106480.0,0.49203468]
[1750152038050,0.3566,106490.0,106480.0,0.49203468]
[1750152038270,0.34938975,106490.0,106480.0,0.49203468]
[1750152038482,0.35877959,106490.0,106480.0,0.49203468]
[1750152038701,0.36816961,106490.0,106480.0,0.49203468]
[1750152039159,0.35877959,106490.0,106480.0,0.49203468]
[1750152039575,0.37755963,106490.0,106480.0,0.49203468]
[1750152040071,0.36816952,106490.0,106480.0,0.49203468]
[1750152040279,0.37755963,106490.0,106480.0,0.49203468]
[1750152040489,0.35877959,106490.0,106480.0,0.49203468]
[1750152040705,0.36816961,106490.0,106480.0,0.49203468]
[1750152040920,0.36816952,106490.0,106480.0,0.49203468]
[1750152041136,0.35877959,106490.0,106480.0,0.49203468]
[1750152041356,0.36816961,106490.0,106480.0,0.49203468]
[1750152041572,0.37755981,106490.0,106480.0,0.49203468]
[1750152042011,0.59136195,106490.0,106480.0,0.46704387]
[1750152042222,0.59136195,106490.0,106480.0,0.47643477]
[1750152042449,0.40355089,106490.0,106480.0,0.48582558]
[1750152042669,0.37537986,106490.0,106480.0,0.48582558]
[1750152042883,0.35877986,106490.0,106480.0,0.50192558]
[1750152043101,0.34938984,106490.0,106480.0,0.50192558]
[1750152043320,0.35877986,106490.0,106480.0,0.50192558]
[1750152043745,0.37756034,106490.0,106480.0,0.50192558]
[1750152043972,0.38336997,106490.0,106480.0,0.50192558]
[1750152044186,0.37397977,106490.0,106480.0,0.50192558]
[1750152044619,0.38336988,106490.0,106480.0,0.50192558]
[1750152045346,0.37397977,106490.0,106480.0,0.50192558]
[1750152045860,0.38336988,106490.0,106480.0,0.50192558]
[1750152046478,0.38336988,106490.0,106480.0,0.48582558]
[1750152046670,0.38336979,106490.0,106480.0,0.48582558]
[1750152047424,0.37397977,106490.0,106480.0,0.48582558]
[1750152047644,0.36458984,106490.0,106480.0,0.48582558]
[1750152048143,0.37397986,106490.0,106480.0,0.48582558]
[1750152048553,0.36458984,106490.0,106480.0,0.48582558]
[1750152048761,0.37397995,106490.0,106480.0,0.48582558]
[1750152048972,0.38337023,106490.0,106480.0,0.48582558]
[1750152049225,0.38337015,106490.0,106480.0,0.48582558]
[1750152049429,0.61623268,106490.0,106480.0,0.48582558]
[1750152049635,0.37397986,106490.0,106480.0,0.48582558]
[1750152049949,0.38337006,106490.0,106480.0,0.48582558]
[1750152050167,0.37397986,106490.0,106480.0,0.48582558]
[1750152050976,0.36458984,106490.0,106480.0,0.48582558]
[1750152052155,0.3552,106490.0,106480.0,0.48582558]
[1750152052372,0.34,106490.0,106480.0,0.50132558]
[1750152053418,0.39107695,106510.0,106500.0,0.21596136]
[1750152053627,0.62393948,106510.0,106500.0,0.21596136]
[1750152053830,0.65236099,106510.0,106500.0,0.21596136]
[1750152054471,0.66174925,106510.0,106500.0,0.21596136]
[1750152054695,0.62671573,106510.0,106500.0,0.31220312]
[1750152054904,0.63071573,106510.0,106500.0,0.31220312]
[1750152055106,0.64611573,106510.0,106500.0,0.31220312]
[1750152055521,0.64811573,106510.0,106500.0,0.31220312]
[1750152056154,0.63872712,106510.0,106500.0,0.31220312]
[1750152056356,0.39985311,106510.0,106500.0,0.31220312]
[1750152056562,0.40924172,106510.0,106500.0,0.31220312]
[1750152056993,0.5970183,106510.0,106500.0,0.3122033]
[1750152057207,0.84548083,106510.0,106500.0,0.3122033]
[1750152057418,0.83609257,106510.0,106500.0,0.3122033]
[1750152058053,0.83609257,106510.0,106500.0,0.4668433]
[1750152058489,0.83609257,106510.0,106500.0,0.47623235]
[1750152058944,0.39667686,106510.0,106500.0,0.47623235]
[1750152059164,0.82049257,106510.0,106500.0,0.47623235]
[1750152059374,0.82650423,106510.0,106500.0,0.44806476]
[1750152059798,0.01878189,106480.0,106470.0,0.22831038]
[1750152060023,0.81035424,106490.0,106480.0,0.34721995]
[1750152060242,0.81035424,106490.0,106480.0,0.24624176]
[1750152060474,0.80096396,106490.0,106480.0,0.60749306]
[1750152060910,0.81974453,106490.0,106480.0,0.44346189]
[1750152061127,0.81035442,106490.0,106480.0,0.44346189]
[1750152061333,0.81035442,106490.0,106480.0,0.46224414]
[1750152061544,0.81974497,106490.0,106480.0,0.47163513]
[1750152061777,0.81974497,106490.0,106480.0,0.46224414]
[1750152061986,0.8103546,106490.0,106480.0,0.24624176]
[1750152062201,0.80096414,106490.0,106480.0,0.58871046]
[1750152062637,0.80096414,106490.0,106480.0,0.5981018]
[1750152063319,0.22832004,106480.0,106470.0,0.37788714]
[1750152063537,0.29213603,106480.0,106470.0,0.63816059]
[1750152063752,0.27703603,106480.0,106470.0,0.63616059]
[1750152063962,0.04434274,106480.0,106470.0,0.63616059]
[1750152064177,0.05373391,106480.0,106470.0,0.63616059]
[1750152064451,0.56309331,106490.0,106480.0,0.20661112]
[1750152064676,0.57264587,106490.0,106480.0,0.20661121]
[1750152064909,0.37527977,106490.0,106480.0,0.55449739]
[1750152065150,0.3681697,106490.0,106480.0,0.33683486]
[1750152065378,0.81185442,106490.0,106480.0,0.09624176]
[1750152065622,0.81185442,106490.0,106470.0,0.36849157]
[1750152065623,0.38958198,106480.0,106470.0,0.36849157]
[1750152065859,0.38958189,106480.0,106470.0,0.47612529]
[1750152066091,0.82995571,106480.0,106470.0,0.25071402]
[1750152066302,0.82995571,106480.0,106450.0,0.02]
[1750152066303,0.04069302,106460.0,106450.0,0.02]
[1750152066519,0.568557,106460.0,106450.0,0.02]
[1750152066749,0.3493924,106460.0,106450.0,0.22666934]
[1750152067007,0.60104017,106460.0,106450.0,0.40224269]
[1750152067234,0.34,106460.0,106450.0,0.3860628]
[1750152067455,0.01339161,106470.0,106460.0,0.21604268]
[1750152067674,0.35339161,106470.0,106460.0,0.22543534]
[1750152067902,0.36278348,106470.0,106460.0,0.23234276]
[1750152068122,0.37217562,106470.0,106460.0,0.3379771]
[1750152068551,0.81166902,106470.0,106460.0,0.30289186]
[1750152068770,0.80227741,106470.0,106460.0,0.30289186]
[1750152068990,0.84350924,106470.0,106460.0,0.09624176]
[1750152069206,0.38717587,106470.0,106460.0,0.30289169]
[1750152069423,0.62943063,106470.0,106460.0,0.3122848]
[1750152069648,0.62003832,106470.0,106460.0,0.3122848]
[1750152069862,0.62943063,106470.0,106460.0,0.3122848]
[1750152070075,0.38817579,106470.0,106460.0,0.32167764]
[1750152070294,0.85390085,106470.0,106460.0,0.33107022]